lending/lending_fUSD_20251018
["ID","MTS","AMOUNT","RATE_DAILY","PERIOD"]
[391721019,1760748661851,-302.0,0.00026989,2]
[391721020,1760748661861,-302.0,0.00026989,2]
[391721021,1760748661870,-302.0,0.00026989,2]
[391721022,1760748661880,-302.0,0.00026989,2]
[391721023,1760748661890,-302.0,0.00026989,2]
[391721024,1760748661900,-302.0,0.00026989,2]
[391721025,1760748661910,-302.0,0.00026989,2]
[391721026,1760748661919,-302.0,0.00026989,2]
[391721027,1760748661929,-302.0,0.00026989,2]
[391721028,1760748661939,-196.0,0.00026989,2]
[391721029,1760748661949,-196.0,0.00026989,2]
[391721030,1760748661959,-196.0,0.00026989,2]
[391721031,1760748661968,-196.0,0.00026989,2]
[391721032,1760748661978,-196.0,0.00026989,2]
[391721033,1760748661987,-196.0,0.00026989,2]
[391721034,1760748661996,-196.0,0.00026989,2]
[391721035,1760748662006,-196.0,0.00026989,2]
[391721036,1760748662016,-196.0,0.00026989,2]
[391721037,1760748662026,-196.0,0.00026989,2]
[391721038,1760748662036,-196.0,0.00026989,2]
[391721039,1760748662045,-196.0,0.00026989,2]
[391721040,1760748662054,-196.0,0.00026989,2]
[391721041,1760748662063,-196.0,0.00026989,2]
[391721042,1760748662073,-250.0,0.00027,2]
[391721043,1760748662082,-21062.95468112,0.00027,2]
[391721044,1760748662092,-1017.34393901,0.00027,2]
[391721045,1760748662101,-4193.80934797,0.00027,2]
[391721046,1760748662111,-530.0,0.00027,2]
[391721047,1760748662120,-1636.64,0.00027051,2]
[391721048,1760748662130,-500.0,0.00027079,5]
[391721049,1760748662139,-4135.92194973,0.00027149,2]
[391721050,1760748662148,-1000.0,0.00027193,2]
[391721051,1760748662157,-595.1306776,0.00027318,2]
[391721052,1760748662166,-1636.64,0.00027325,2]
[391721053,1760748662175,-500.0,0.00027353,5]
[391721054,1760748662185,-1187.78,0.00027397,2]
[391721055,1760748662194,-200.0,0.00027397,2]
[391721056,1760748662203,-712.68,0.00027397,2]
[391721057,1760748662213,-226.74,0.00027397,2]
[391721058,1760748662223,-157.11717055,0.00027397,5]
[391721059,1760748662232,-1105.2,0.000274,7]
[391721060,1760748662241,-399.73,0.000274,2]
[391721061,1760748662251,-399.73,0.000274,2]
[391721062,1760748662260,-399.73,0.000274,2]
[391721063,1760748662269,-399.73,0.000274,2]
[391721064,1760748662279,-399.73,0.000274,2]
[391721065,1760748662289,-5854.762599,0.00027492,2]
[391721066,1760748662299,-4609.0,0.00027579,2]
[391721067,1760748662308,-1636.64,0.00027599,7]
[391721068,1760748662318,-500.0,0.00027627,10]
[391721069,1760748662327,-200.0,0.00027671,2]
[391721070,1760748662336,-300.0,0.00027671,10]
[391721071,1760748662346,-33402.1784878,0.00027672,2]
[391721072,1760748662356,-965.9970324,0.0002782,2]
[391721073,1760748662365,-1636.64,0.00027873,7]
[391721074,1760748662374,-500.0,0.00027901,10]
[391721075,1760748662383,-200.0,0.00027948,2]
[391721076,1760748662395,-300.0,0.00027967,10]
[391721077,1760748662404,-13357.9115439,0.00027968,2]
[391721078,1760748662451,-300.0,0.00027999,10]
[391721079,1760748662460,-27432.46054698,0.00028,60]
[391721080,1760748662471,-9595.82,0.00028,2]
[391721081,1760748662480,-175.79,0.00028014,2]
[391721082,1760748662489,-233.8324627,0.00028107,2]
[391721083,1760748662498,-1636.64,0.00028147,7]
[391721084,1760748662507,-265.98,0.0002815,30]
[391721085,1760748662516,-199.61994609,0.0002819,2]
[391721086,1760748662525,-200.0,0.00028227,2]
[391721087,1760748662535,-1140.47,0.00028364,120]
[391721088,1760748662543,-4618.0,0.00028391,5]
[391721089,1760748662552,-1636.64604892,0.00028421,7]
[391721090,1760748662562,-6302.30921847,0.00028485,2]
[391721091,1760748662571,-1187.78,0.00028493,4]
[391721092,1760748662580,-200.0,0.00028509,2]
[391721093,1760748662590,-300.0,0.00028573,10]
[391721094,1760748662599,-83125.06592482,0.00028574,2]
[391721095,1760748662764,-357.28615974,0.00028574,2]
[391721096,1760748662777,-385.78430013,0.00028574,2]
[391721097,1760748662880,-151.0,0.0002139,7]
[391721098,1760748662891,-151.0,0.0002139,7]
[391721099,1760748662899,-210.081592,0.0002139,7]
[391721100,1760748662908,-151.0,0.0002139,7]
[391721101,1760748662917,-151.0,0.00021573,7]
[391721102,1760748662926,-210.081592,0.00021573,7]
[391721103,1760748662935,-151.0,0.00021573,7]
[391721104,1760748662945,-210.081592,0.000216,7]
[391721105,1760748662954,-210.081592,0.000216,7]
[391721106,1760748662963,-210.081592,0.000216,7]
[391721107,1760748662972,-210.081592,0.000216,7]
[391721108,1760748662980,-210.081592,0.000216,7]
[391721109,1760748662990,-210.081592,0.000216,7]
[391721110,1760748663000,-25726.71204391,0.00028574,2]
[391721111,1760748663010,-1037.0,0.000286,2]
[391721112,1760748663019,-1105.2,0.000286,7]
[391721113,1760748663028,-2216.7375564,0.0002874,2]
[391721114,1760748663039,-984.05,0.000288,2]
[391721115,1760748663048,-300.0,0.00028999,10]
[391721116,1760748663057,-1754.32151445,0.00029,2]
[391721171,1760749172428,1000.0,0.00032077,30]
[391721172,1760749173106,1000.0,0.00032077,30]
[391721173,1760749173814,1000.0,0.00032077,30]
[391721174,1760749174532,1000.0,0.00032077,30]
[391721175,1760749175262,1000.0,0.00032077,30]
[391721176,1760749175986,1000.0,0.00032077,30]
[391721179,1760749176693,1000.0,0.00032077,30]
[391721180,1760749178113,1000.0,0.00032077,30]
[391721181,1760749178684,370.3669502,0.00032077,30]
[391721183,1760749193117,1000.0,0.00027397,120]
[391721184,1760749193361,1000.0,0.00027397,120]
[391721185,1760749193591,1000.0,0.00027397,120]
[391721186,1760749193837,1000.0,0.00027397,120]
[391721187,1760749194964,1000.0,0.00027397,120]
[391721188,1760749195203,1000.0,0.00027397,120]
[391721189,1760749195426,1000.0,0.00027397,120]
[391721190,1760749195656,1000.0,0.00027397,120]
[391721191,1760749195886,1000.0,0.00027397,120]
[391721192,1760749196114,1000.0,0.00027397,120]
[391721193,1760749196395,1000.0,0.00027397,120]
[391721194,1760749196624,1000.0,0.00027397,120]
[391721195,1760749196862,1000.0,0.00027397,120]
[391721196,1760749197107,1000.0,0.00027397,120]
[391721197,1760749197371,1000.0,0.00027397,120]
[391721198,1760749197601,191.35142875,0.00027397,120]
[391721273,1760749406083,3674.68422616,0.00032078,120]
[391721284,1760749434210,1424.66066194,0.00032078,120]
[391721361,1760749831756,-250.0,0.00017,2]
[391721362,1760749831766,-596.97912882,0.00017424,2]
[391721363,1760749831775,-500.0,0.00017847,3]
[391721364,1760749831785,-500.0,0.00018452,3]
[391721365,1760749831795,-150.0,0.00018694,2]
[391721366,1760749831805,-300.0,0.00018694,2]
[391721367,1760749831813,-300.0,0.00018694,2]
[391721368,1760749831823,-1200.0,0.00018694,2]
[391721369,1760749831833,-33832.93438396,0.00018695,5]
[391721370,1760749831842,-185.6,0.00018695,2]
[391721371,1760749831852,-500.0,0.000187,3]
[391721372,1760749831862,-250.0,0.000187,2]
[391721374,1760749831871,-2500.0,0.000187,2]
[391721376,1760749831882,-151.0,0.00019178,2]
[391721377,1760749831891,-156.587,0.00019726,2]
[391721378,1760749831902,-162.380719,0.00020274,2]
[391721379,1760749831911,-420.0,0.00020382,2]
[391721380,1760749831921,-287.0,0.00020382,2]
[391721381,1760749831930,-1000.0,0.00020399,2]
[391721382,1760749831944,-475.6557911,0.0002047,2]
[391721383,1760749831956,-1680.0,0.00020482,2]
[391721384,1760749831966,-1100.0,0.00020535,2]
[391721385,1760749831976,-25811.1641978,0.00020536,2]
[391721386,1760749831986,-200.0,0.00020613,2]
[391721387,1760749831995,-150.0,0.00020626,2]
[391721388,1760749832005,-175.79,0.00020781,2]
[391721389,1760749832015,-168.3888056,0.00020822,2]
[391721390,1760749832025,-452.52329299,0.00020983,2]
[391721391,1760749832035,-23528.22275279,0.00020984,2]
[391721392,1760749832044,-250.0,0.00021056,2]
[391721393,1760749832054,-1000.0,0.00021164,2]
[391721394,1760749832066,-666.0,0.00021345,3]
[391721395,1760749832076,-174.61919141,0.0002137,2]
[391721396,1760749832085,-500.0,0.00021389,2]
[391721397,1760749832095,-166.66,0.00021688,2]
[391721398,1760749832105,-181.08010149,0.00021918,2]
[391721399,1760749832118,-1000.0,0.00021929,2]
[391721400,1760749832128,-587.0,0.00022224,2]
[391721401,1760749832140,-166.66,0.00022404,2]
[391721402,1760749832150,-2351.0,0.00022441,2]
[391721403,1760749832159,-303.30239886,0.00022466,2]
[391721404,1760749832169,-1000.0,0.00022694,2]
[391721405,1760749832178,-377.50752608,0.00023,2]
[391721406,1760749832188,-9669.11030175,0.0002302,2]
[391721407,1760749832197,-1841.22,0.00023025,2]
[391721408,1760749832221,-498.17738433,0.00023026,2]
[391721409,1760749832230,-252060.63870897,0.00023026,2]
[391721410,1760749832240,-500.0,0.00023073,2]
[391721411,1760749832249,-600.0,0.00023108,2]
[391721412,1760749832259,-200.0,0.00023108,2]
[391721413,1760749832269,-203.38446236,0.00023108,2]
[391721414,1760749832278,-166.66,0.0002312,2]
[391721415,1760749832287,-361.28089108,0.0002312,2]
[391721416,1760749832297,-74891.03,0.00023121,2]
[391721417,1760749832306,-250.0,0.00023126,7]
[391721418,1760749832316,-377.50752608,0.000232,2]
[391721419,1760749832325,-1841.22,0.00023299,2]
[391721420,1760749832335,-25811.1641978,0.0002338,2]
[391721421,1760749832344,-1000.0,0.00023459,2]
[391721422,1760749832354,-377.50752608,0.000235,2]
[391721423,1760749832363,-1841.22,0.00023573,2]
[391721424,1760749832373,-206.0,0.00023582,2]
[391721425,1760749832383,-1000.0,0.00023621,2]
[391721426,1760749832393,-600.0,0.00023656,2]
[391721427,1760749832402,-377.50752608,0.000237,2]
[391721428,1760749832412,-19042.74907051,0.0002376,2]
[391721429,1760749832422,-1000.0,0.0002376,2]
[391721430,1760749832432,-1000.0,0.0002376,2]
[391721431,1760749832441,-1000.0,0.0002376,2]
[391721432,1760749832450,-1000.0,0.0002376,2]
[391721433,1760749832460,-1000.0,0.0002376,2]
[391721434,1760749832469,-172.0,0.0002376,2]
[391721435,1760749832479,-544.72,0.00023836,2]
[391721436,1760749832489,-166.66,0.00023836,2]
[391721437,1760749832498,-237.0,0.00023842,2]
[391721438,1760749832508,-1841.22,0.00023847,2]
[391721439,1760749832517,-377.50752608,0.000239,2]
[391721440,1760749832528,-276.01536113,0.0002406,2]
[391721441,1760749832538,-340.0548,0.00024082,10]
[391721442,1760749832547,-1841.22,0.00024121,2]
[391721443,1760749832557,-600.0,0.00024204,2]
[391721444,1760749832567,-281.0,0.00024231,2]
[391721445,1760749832576,-3295.03621571,0.00024364,2]
[391721446,1760749832587,-1841.22,0.00024395,2]
[391721447,1760749832597,-150.0,0.00024442,2]
[391721448,1760749832607,-166.66,0.00024552,2]
[391721449,1760749832616,-2910.7252768,0.00024572,2]
[391721450,1760749832625,-3292.0,0.00024587,2]
[391721451,1760749832635,-500.0,0.00024658,5]
[391721452,1760749832644,-695.97,0.00024658,2]
[391721453,1760749832654,-1841.22,0.00024669,2]
[391721454,1760749832663,-1038.06467914,0.000247,2]
[391721455,1760749832672,-9669.11030171,0.0002474,2]
[391721456,1760749832681,-600.0,0.00024752,2]
[391721457,1760749832691,-500.0,0.00024773,2]
[391721458,1760749832701,-500.0,0.00024773,2]
[391721459,1760749832711,-500.0,0.00024773,2]
[391721460,1760749832720,-500.0,0.00024773,2]
[391721461,1760749832729,-200.0,0.00024773,2]
[391721462,1760749832738,-114490.75035,0.000248,2]
[391721463,1760749832748,-500.0,0.00024932,2]
[391721464,1760749832758,-500.0,0.00024932,2]
[391721465,1760749832768,-500.0,0.00024932,2]
[391721466,1760749832777,-500.0,0.00024932,5]
[391721467,1760749832787,-1841.22,0.00024943,2]
[391721468,1760749832797,-300.0,0.00024978,2]
[391721469,1760749832806,-1014.76,0.00025,2]
[391721470,1760749832817,-16355.8214786,0.00025023,2]
[391721471,1760749832826,-2644.31,0.00025031,2]
[391721472,1760749832836,-2505.69,0.00025033,2]
[391721473,1760749832845,-167.0,0.00025077,2]
[391721474,1760749832855,-167.0,0.00025077,2]
[391721475,1760749832864,-167.0,0.00025077,2]
[391721476,1760749832874,-167.0,0.00025077,2]
[391721477,1760749832883,-167.0,0.00025077,2]
[391721478,1760749832893,-167.0,0.00025077,2]
[391721479,1760749832902,-167.0,0.00025077,2]
[391721480,1760749832912,-167.0,0.00025077,2]
[391721481,1760749832921,-167.0,0.00025077,2]
[391721482,1760749832931,-167.0,0.00025077,2]
[391721483,1760749832940,-167.0,0.00025077,2]
[391721484,1760749832950,-268.0,0.00025077,2]
[391721485,1760749832960,-268.0,0.00025077,2]
[391721486,1760749832970,-268.0,0.00025077,2]
[391721487,1760749832979,-268.0,0.00025077,2]
[391721488,1760749832988,-268.0,0.00025077,2]
[391721489,1760749832997,-268.0,0.00025077,2]
[391721490,1760749833007,-268.0,0.00025077,2]
[391721491,1760749833016,-268.0,0.00025077,2]
[391721492,1760749833025,-268.0,0.00025077,2]
[391721493,1760749833034,-268.0,0.00025077,2]
[391721494,1760749833044,-268.0,0.00025077,2]
[391721495,1760749833055,-268.0,0.00025077,2]
[391721496,1760749833066,-268.0,0.00025077,2]
[391721497,1760749833076,-268.0,0.00025077,2]
[391721498,1760749833086,-268.0,0.00025077,2]
[391721499,1760749833095,-268.0,0.00025077,2]
[391721500,1760749833105,-288.0,0.00025077,2]
[391721501,1760749833115,-288.0,0.00025077,2]
[391721502,1760749833124,-288.0,0.00025077,2]
[391721503,1760749833136,-288.0,0.00025077,2]
[391721504,1760749833145,-288.0,0.00025077,2]
[391721505,1760749833155,-288.0,0.00025077,2]
[391721506,1760749833164,-288.0,0.00025077,2]
[391721507,1760749833186,-288.0,0.00025077,2]
[391721508,1760749833195,-160.0,0.00025077,2]
[391721509,1760749833205,-160.0,0.00025077,2]
[391721510,1760749833215,-160.0,0.00025077,2]
[391721511,1760749833224,-160.0,0.00025077,2]
[391721512,1760749833234,-160.0,0.00025077,2]
[391721513,1760749833243,-160.0,0.00025077,2]
[391721514,1760749833253,-160.0,0.00025077,2]
[391721515,1760749833263,-160.0,0.00025077,2]
[391721516,1760749833272,-160.0,0.00025077,2]
[391721517,1760749833282,-160.0,0.00025077,2]
[391721518,1760749833291,-160.0,0.00025077,2]
[391721519,1760749833300,-160.0,0.00025077,2]
[391721520,1760749833310,-213.0,0.00025077,2]
[391721521,1760749833319,-213.0,0.00025077,2]
[391721522,1760749833329,-213.0,0.00025077,2]
[391721523,1760749833338,-213.0,0.00025077,2]
[391721524,1760749833348,-213.0,0.00025077,2]
[391721525,1760749833358,-213.0,0.00025077,2]
[391721526,1760749833367,-213.0,0.00025077,2]
[391721527,1760749833376,-213.0,0.00025077,2]
[391721528,1760749833385,-213.0,0.00025077,2]
[391721529,1760749833394,-213.0,0.00025077,2]
[391721530,1760749833403,-213.0,0.00025077,2]
[391721531,1760749833413,-213.0,0.00025077,2]
[391721532,1760749833423,-213.0,0.00025077,2]
[391721533,1760749833432,-213.0,0.00025077,2]
[391721534,1760749833441,-213.0,0.00025077,2]
[391721535,1760749833451,-8122.43089524,0.00025089,2]
[391721536,1760749833460,-150.64,0.00025136,2]
[391721537,1760749833470,-16355.8214786,0.00025178,2]
[391721538,1760749833480,-11002.3336052,0.00025178,2]
[391721539,1760749833489,-22323.5752404,0.00025188,2]
[391721540,1760749837677,-500.0,0.00023019,2]
[391721541,1760749837687,-500.0,0.00023019,2]
[391721542,1760749837697,-500.0,0.00023019,2]
[391721543,1760749837706,-500.0,0.00023019,2]
[391721544,1760749837715,-500.0,0.00023019,2]
[391721545,1760749837725,-500.0,0.00023019,2]
[391721546,1760749837736,-303.89231484,0.00023019,2]
[391721547,1760749837749,-500.0,0.00023019,2]
[391721548,1760749837758,-500.0,0.00023019,2]
[391721549,1760749837768,-2246.50629618,0.00025188,2]
[391721561,1760749839849,-429.91846342,0.00025188,2]
[391721562,1760749839859,-500.0,0.00025205,5]
[391721563,1760749839868,-500.0,0.00025207,2]
[391721564,1760749839878,-1841.22,0.00025217,2]
[391721565,1760749839887,-150.81,0.0002523,2]
[391721566,1760749839897,-166.66,0.00025268,2]
[391721567,1760749839906,-500.0,0.00025274,2]
[391721568,1760749839917,-500.0,0.00025274,2]
[391721569,1760749839926,-600.0,0.000253,2]
[391721570,1760749839939,-653.59479049,0.00025321,2]
[391721571,1760749839948,-1000.0,0.00025321,2]
[391721572,1760749839957,-523.92912881,0.0002534,2]
[391721573,1760749839967,-164.85033783,0.0002534,2]
[391721574,1760749839976,-157.45722524,0.0002534,2]
[391721575,1760749839986,-150.98,0.00025356,2]
[391721576,1760749839995,-150.1,0.00025436,2]
[391721577,1760749840005,-498.17738426,0.00025456,2]
[391721578,1760749840014,-400.0,0.00025458,2]
[391721579,1760749840024,-500.0,0.00025479,5]
[391721580,1760749840034,-1841.22,0.00025491,2]
[391721581,1760749840043,-1014.76,0.000255,2]
[391721582,1760749840053,-16355.8214786,0.00025552,2]
[391721583,1760749840066,-500.0,0.00025562,2]
[391721584,1760749840076,-150.6,0.00025632,2]
[391721585,1760749840085,-500.0,0.00025753,5]
[391721586,1760749840094,-501.65863554,0.00025755,2]
[391721587,1760749840105,-1841.22,0.00025765,2]
[391721588,1760749840115,-150.0,0.00025796,2]
[391721589,1760749840124,-1000.0,0.000258,2]
[391721590,1760749840135,-497.00194634,0.00025822,2]
[391721591,1760749840144,-1000.0,0.00025822,2]
[391721592,1760749840154,-207.4,0.00025847,2]
[391721593,1760749840164,-600.0,0.00025848,2]
[391721594,1760749840173,-11002.3336052,0.00025859,2]
[391721595,1760749840182,-1500.0,0.00025868,2]
[391721596,1760749840192,-150.28,0.00025915,2]
[391721597,1760749840201,-5000.0,0.0002593,2]
[391721598,1760749840210,-296.88,0.00025952,2]
[391721599,1760749840219,-150.82,0.00025958,2]
[391721600,1760749840231,-1841.22,0.00026039,2]
[391721601,1760749840240,-208.15380563,0.00026114,2]
[391721602,1760749840249,-600.0,0.00026142,2]
[391721603,1760749840259,-16355.8214786,0.00026214,2]
[391721604,1760749840273,-11002.3336052,0.00026214,2]
[391721605,1760749840282,-151.0,0.00026214,7]
[391721607,1760749840291,-25811.1641978,0.00026224,2]
[391721609,1760749840301,-151.0,0.00026224,7]
[391721611,1760749840310,-151.0,0.00026224,7]
[391721613,1760749840319,-151.0,0.00026224,7]
[391721615,1760749840329,-151.0,0.00026224,7]
[391721617,1760749840338,-4520.631,0.00026303,13]
[391721619,1760749840347,-277.39,0.00026303,13]
[391721620,1760749840357,-1841.22,0.00026313,2]
[391721621,1760749840366,-300.0,0.00026348,2]
[391721622,1760749840375,-1500.0,0.0002637,2]
[391721623,1760749840384,-600.0,0.00026396,2]
[391721624,1760749840393,-2000.0,0.00026416,2]
[391721625,1760749840402,-11002.3336052,0.0002645,2]
[391721626,1760749840411,-16355.8214786,0.00026454,2]
[391721627,1760749840421,-9669.11030171,0.0002646,2]
[391721628,1760749840430,-1841.22,0.00026587,2]
[391721629,1760749840439,-800.0,0.00026827,2]
[391721630,1760749840449,-1841.22,0.00026861,2]
[391721631,1760749840458,-2000.0,0.00026918,2]
[391721632,1760749840467,-11002.3336052,0.00026929,2]
[391721633,1760749840476,-4609.0,0.00026939,2]
[391721634,1760749840488,-600.0,0.00026944,2]
[391721635,1760749840498,-2500.0,0.00026964,2]
[391721636,1760749840507,-208.15380563,0.00027111,2]
[391721637,1760749840516,-1841.22604892,0.00027135,2]
[391721638,1760749840525,-300.0,0.00027397,7]
[391721639,1760749840534,-695.97,0.00027397,2]
[391721640,1760749840543,-399.73,0.000274,2]
[391721641,1760749840551,-399.73,0.000274,2]
[391721642,1760749840560,-399.73,0.000274,2]
[391721643,1760749840569,-399.73,0.000274,2]
[391721644,1760749840578,-399.73,0.000274,2]
[391721645,1760749840588,-2500.0,0.00027466,5]
[391721646,1760749840597,-600.0,0.00027492,2]
[391721647,1760749840606,-151.0,0.00027492,30]
[391721648,1760749840615,-151.0,0.00027492,30]
[391721649,1760749840625,-3000.0,0.00027512,5]
[391721650,1760749840634,-1000.0,0.00027512,5]
[391721651,1760749840643,-498.17738426,0.00027887,2]
[391721652,1760749840652,-2092.41983674,0.00028014,5]
[391721653,1760749840662,-3500.0,0.0002806,5]
[391721654,1760749840672,-208.15380563,0.00028108,2]
[391721655,1760749840681,-16355.8214786,0.0002817,2]
[391721656,1760749840690,-11002.3336052,0.0002817,2]
[391721657,1760749840699,-500.0,0.00028173,5]
[391721658,1760749840708,-273.06431883,0.00028173,5]
[391721659,1760749840718,-157.11717055,0.00028173,5]
[391721660,1760749840728,-9669.11030171,0.0002818,2]
[391721661,1760749840738,-151.0,0.00028184,30]
[391721662,1760749840747,-273.442257,0.00028184,30]
[391721663,1760749840756,-151.0,0.00028184,30]
[391721664,1760749840766,-151.0,0.00028184,30]
[391721665,1760749840775,-151.0,0.00028184,30]
[391721666,1760749840785,-151.0,0.00028184,30]
[391721667,1760749841006,-151.0,0.00028184,30]
[391721668,1760749841016,-32711.6429571,0.00028188,2]
[391721669,1760749841026,-33007.0008156,0.00028188,2]
[391721670,1760749841036,-264.36905445,0.00028188,2]
[391721671,1760749841046,-150.05,0.00028188,2]
[391721672,1760749841057,-151.0,0.00028188,30]
[391721673,1760749841071,-151.0,0.00028188,30]
[391721674,1760749841080,-151.0,0.00028188,30]
[391721675,1760749841089,-151.0,0.00028188,30]
[391721676,1760749841099,-11002.3336052,0.00028193,2]
[391721677,1760749841108,-1000.0,0.00028197,5]
[391721678,1760749841118,-98134.9288714,0.00028198,2]
[391721679,1760749841129,-99021.0024468,0.00028198,2]
[391721680,1760749841139,-151.0,0.00028198,30]
[391721681,1760749841148,-151.0,0.00028198,30]
[391721682,1760749841158,-151.0,0.00028198,30]
[391721683,1760749841167,-151.0,0.00028198,30]
[391721684,1760749841177,-151.0,0.00028198,30]
[391721685,1760749841186,-151.0,0.00028198,30]
[391721686,1760749841195,-151.0,0.00028198,30]
[391721687,1760749841204,-151.0,0.00028198,30]
[391721688,1760749841214,-151.0,0.00028198,30]
[391721689,1760749841223,-151.0,0.00028198,30]
[391721690,1760749841233,-151.0,0.00028198,30]
[391721691,1760749841243,-151.0,0.00028198,30]
[391721692,1760749841252,-288.815914,0.00028198,30]
[391721693,1760749841261,-15967.13,0.00028203,2]
[391721694,1760749841271,-19999.99,0.00028203,2]
[391721695,1760749841280,-1181.51,0.00028203,2]
[391721696,1760749841290,-9999.99,0.00028203,2]
[391721697,1760749841299,-6364.6,0.00028203,2]
[391721698,1760749841308,-500.0,0.00028207,17]
[391721699,1760749841318,-2306.2865279,0.00028208,2]
[391721700,1760749841327,-69005.8882273,0.00028208,2]
[391721701,1760749841336,-383.5169355,0.00028208,2]
[391721702,1760749841345,-124573.4384486,0.00028208,2]
[391721703,1760749841356,-151.0,0.00028208,30]
[391721704,1760749841365,-151.0,0.00028208,30]
[391721705,1760749841379,-151.0,0.00028208,30]
[391721706,1760749841388,-151.0,0.00028208,30]
[391721707,1760749841398,-151.0,0.00028208,30]
[391721708,1760749841408,-151.0,0.00028208,30]
[391721709,1760749841418,-151.0,0.00028208,30]
[391721710,1760749841427,-151.0,0.00028208,30]
[391721711,1760749841436,-177.078586,0.00028208,30]
[391721712,1760749841446,-151.0,0.00028208,30]
[391721713,1760749841455,-151.0,0.00028208,30]
[391721714,1760749841464,-166.43666403,0.00028208,30]
[391721715,1760749841474,-273.333194,0.00028208,30]
[391721716,1760749841484,-284.38862231,0.00028208,30]
[391721717,1760749841493,-151.0,0.00028208,30]
[391721718,1760749841503,-151.0,0.00028208,30]
[391721719,1760749841513,-819.44390309,0.00028232,2]
[391721720,1760749841522,-984.05,0.000283,2]
[391721721,1760749841531,-994.68,0.000283,7]
[391721722,1760749841540,-16355.8214786,0.00028396,2]
[391721723,1760749841549,-11002.3336052,0.000284,2]
[391721724,1760749841559,-150.05,0.000284,2]
[391721725,1760749841568,-154.0,0.0002841,2]
[391721726,1760749841577,-154.0,0.0002841,2]
[391721727,1760749841586,-154.0,0.0002841,2]
[391721728,1760749841595,-154.0,0.0002841,2]
[391721729,1760749841604,-154.0,0.0002841,2]
[391721730,1760749841613,-154.0,0.0002841,2]
[391721731,1760749841623,-154.0,0.0002841,2]
[391721732,1760749841632,-154.0,0.0002841,2]
[391721733,1760749841643,-154.0,0.0002841,2]
[391721734,1760749841652,-154.0,0.0002841,2]
[391721735,1760749841662,-154.0,0.0002841,2]
[391721736,1760749841671,-154.0,0.0002841,2]
[391721737,1760749841680,-154.0,0.0002841,2]
[391721738,1760749841689,-278.0,0.0002841,2]
[391721739,1760749841698,-278.0,0.0002841,2]
[391721740,1760749841707,-278.0,0.0002841,2]
[391721741,1760749841716,-278.0,0.0002841,2]
[391721742,1760749841725,-278.0,0.0002841,2]
[391721743,1760749841734,-278.0,0.0002841,2]
[391721744,1760749841743,-234.0,0.0002841,2]
[391721745,1760749841756,-234.0,0.0002841,2]
[391721746,1760749841766,-234.0,0.0002841,2]
[391721747,1760749841776,-234.0,0.0002841,2]
[391721748,1760749841785,-234.0,0.0002841,2]
[391721749,1760749841794,-234.0,0.0002841,2]
[391721750,1760749841804,-234.0,0.0002841,2]
[391721751,1760749841813,-234.0,0.0002841,2]
[391721752,1760749841823,-234.0,0.0002841,2]
[391721753,1760749841832,-234.0,0.0002841,2]
[391721754,1760749841841,-234.0,0.0002841,2]
[391721755,1760749841850,-234.0,0.0002841,2]